Cogmind - Beta 14 @@@ ROGUE MODE // 2025.03.04 @ 00:31:10 Player: SovietPaperclip Result: Self-destructed Performance ------------- Evolutions (2) 1000 Regions Visited (5) 1000 Robots Destroyed (53) 265 Value Destroyed (1272) 1272 Prototype IDs (2) 40 Alien Tech Used (0) 0 Bonus (300) 300 TOTAL SCORE: 3877 Bonus ------- Aligned with FarCom 300 Cogmind --------- Core Integrity 451/550 Matter 256/300 Energy 275/275 System Corruption 2% Temperature Cool (0) Movement Treading (240) Ox1 Location -8/Materials Parts ------- > --- POWER (1) -------- Deuterium Engine > --- PROPULSION (4) --- Light Treads Light Treads Light Treads Light Treads > --- UTILITY (4) ------ Huge Storage Unit Signal Interpreter Hardened Heavy Armor Plating > --- WEAPON (2) ------- Minigun Enhanced Autogun > --- INVENTORY (25) --- Light Deuterium Engine Light Treads Light Treads Combat Airjet Combat Airjet High-capacity Matter Pod (200) Machine Analyzer Improved Signal Interpreter Launcher Guidance Computer Hardened Heavy Armor Plating Hardened Heavy Armor Plating Hardened Heavy Armor Plating Hacking Suite System Shield Skeleton Box High-powered Tractor Beam Minigun Rocket Launcher Power Maul Deploy-a-Sentry Deploy-a-Sentry Deploy-a-Sentry Peak State ------------ > --- POWER ------------ Deuterium Engine > --- PROPULSION ------- Light Treads Light Treads Light Treads Light Treads > --- UTILITY ---------- Huge Storage Unit Signal Interpreter Hardened Heavy Armor Plating > --- WEAPON ----------- Minigun Power Maul > --- INVENTORY -------- Light Deuterium Engine Light Treads Light Treads Light Treads Combat Airjet Combat Airjet High-capacity Matter Pod Machine Analyzer Improved Signal Interpreter Launcher Guidance Computer Hardened Heavy Armor Plating Hardened Heavy Armor Plating Hardened Heavy Armor Plating Hacking Suite System Shield Skeleton Box High-powered Tractor Beam Minigun Rocket Launcher Deploy-a-Sentry Deploy-a-Sentry Deploy-a-Sentry [Rating: 33] Favorites ----------- Power Ion Engine Engine Ion Engine Propulsion Light Treads Treads Light Treads Utility High-capacity Storage Unit Device Terrain Scanner Storage High-capacity Storage Unit Processor Signal Interpreter Protection Hardened Heavy Armor Plating Weapon Assault Rifle Ballistic Gun Assault Rifle Launcher Grenade Launcher Impact Weapon Power Maul Piercing Weapon Makeshift Spear Build | -11 -10 -10 -10 -9 -8 ------- Run | Yrd Mat Min Exi Min Mat Slots Evolved 4 | . . . . . 4 Power . | . . . . . . Propulsion 2 | . . . . . 2 Utility 2 | . . . . . 2 Weapon . | . . . . . . Parts Attached 38 | 6 4 3 2 . 23 Power 3 | 1 1 . . . 1 Engine 3 | 1 1 . . . 1 Core . | . . . . . . Reactor . | . . . . . . Propulsion 7 | 2 . . . . 5 Treads 7 | 2 . . . . 5 Leg . | . . . . . . Wheel . | . . . . . . Hover . | . . . . . . Flight . | . . . . . . Utility 11 | 1 2 . 2 . 6 Device 4 | . 1 . 1 . 2 Storage 3 | 1 1 . . . 1 Processor 1 | . . . . . 1 Hackware . | . . . . . . Protection 3 | . . . 1 . 2 Artifact . | . . . . . . Weapon 17 | 2 1 3 . . 11 Energy Gun . | . . . . . . Energy Cannon . | . . . . . . Ballistic Gun 11 | 2 1 1 . . 7 Ballistic Cannon . | . . . . . . Launcher 2 | . . 2 . . . Special Weapon . | . . . . . . Impact Weapon 1 | . . . . . 1 Slashing Weapon . | . . . . . . Piercing Weapon 3 | . . . . . 3 Special Melee Weapon . | . . . . . . Unidentified Prototypes 2 | . . . 1 . 1 Parts Lost 1 | . . . . . 1 Power . | . . . . . . Propulsion 1 | . . . . . 1 Utility . | . . . . . . Weapon . | . . . . . . Highest Loss Streak 1 | . . . . . 1 To Critical Strikes . | . . . . . . Average Slot Usage (%) 96 | . 97 100 100 100 92 Engine 12 | . 14 14 14 14 9 Treads 30 | . 28 28 28 28 35 Device 7 | . 11 14 11 . 2 Storage 12 | . 14 14 14 14 9 Processor 3 | . . . . . 9 Protection 5 | . . . 2 14 9 Ballistic Gun 17 | . 28 17 14 14 16 Launcher 5 | . . 10 14 14 . Peak Build Rating 33 | 6 8 10 17 15 33 Average Rating 17 | 4 6 9 10 14 29 On Entrance 8 | . 6 8 10 14 15 Naked Turns . | . . . . . . Heaviest Build 115 | 13 50 51 53 53 115 Greatest Support 80 | 40 40 40 40 40 80 Greatest Overweight (x) 1 | . 1 1 1 1 1 Average Overweight (x) . | . . 1 1 1 . Largest Inventory Capacity 25 | 8 20 20 20 20 25 Average Capacity 20 | 6 13 20 20 20 24 Most Carried 25 | 1 10 16 20 20 25 Average Carried 17 | . 7 13 16 19 23 Final Capacity 25 | 8 20 20 20 20 25 Final Carried 25 | 1 10 16 20 20 25 Class Distribution -------------------- 74% | Mutant 16% | Scavenger-Mutant 4% | Skirmisher 3% | Assassin Dominant Class ---------------- Mutant | -10/Materials Mutant | -10/Mines Mutant | -10/Exiles Mutant | -9/Mines Scavenger-Mutant | -8/Materials Resources | -11 -10 -10 -10 -9 -8 ----------- Run | Yrd Mat Min Exi Min Mat Matter Collected 1883 | 243 399 60 . . 1181 Remotely . | . . . . . . Salvage Created 1808 | . 332 35 . . 1441 Parts 116 | . 29 6 . . 81 Haulers Intercepted 5 | . 1 . . . 4 Recyclers Shooed 2 | . 1 . . . 1 Parts Field Recycled . | . . . . . . Retrieved Matter . | . . . . . . Parts Self-Destructed . | . . . . . . Prevented . | . . . . . . Kills | -11 -10 -10 -10 -9 -8 ------- Run | Yrd Mat Min Exi Min Mat Combat Hostiles Destroyed 39 | . 10 5 . . 24 Guns 34 | . 10 . . . 24 AOE 5 | . . 5 . . . Classes Destroyed 11 | . 4 2 . . 5 Worker 2 | . . 1 . . 1 Builder 1 | . . . . . 1 Hauler 5 | . 1 . . . 4 Mechanic 1 | . . . . . 1 Watcher 7 | . 2 . . . 5 Swarmer 17 | . 6 3 . . 8 Grunt 10 | . 4 . . . 6 Sentry 7 | . . . . . 7 Specialist 2 | . . . . . 2 Hunter 1 | . . . . . 1 Assembled 2 | . . 2 . . . Best Kill Streak 7 | . 7 4 . . 7 Combat Bots Only 7 | . 5 3 . . 7 Max Kills in Single Turn 4 | . 1 4 . . 2 Gunslinging . | . . . . . . Exploded 3 | . . 3 . . . Melee . | . . . . . . Uniques/NPCs Destroyed . | . . . . . . Combat | -11 -10 -10 -10 -9 -8 -------- Run | Yrd Mat Min Exi Min Mat Hostile Shots Fired 211 | . 41 12 . . 158 Missed 63 | . 11 4 . . 48 Damage Taken 1758 | . 277 99 . . 1382 Core 157 | . 58 . . . 99 Absorbed by Shields . | . . . . . . Core Remaining (%) 88 | 100 . . . 76 . Volleys Fired 133 | . 28 3 . . 102 Largest 2 | . 2 1 . . 2 Hottest 50 | . 40 30 . . 50 Shots Fired 260 | . 56 3 . . 201 Gun 257 | . 56 . . . 201 Cannon . | . . . . . . Launcher 3 | . . 3 . . . Special . | . . . . . . Kinetic 257 | . 56 . . . 201 Thermal . | . . . . . . Explosive 3 | . . 3 . . . Electromagnetic . | . . . . . . Robot Hit Streak 13 | . 8 . . . 13 Robot Miss Streak 4 | . 3 . . . 4 Penetration Max . | . . . . . . Secondary Targets 5 | . 3 . . . 2 Max Gunslinging Chain 1 | . 1 . . . 1 Shots Hit Robots 162 | . 37 . . . 125 Core Hits 91 | . 20 13 . . 58 Critical Kills 1 | . . . . . 1 Critical Parts Destroyed . | . . . . . . Critical Strikes 1 | . . . . . 1 Destroy 1 | . . . . . 1 Melee Attacks 15 | . . . . . 15 Impact 3 | . . . . . 3 Slashing . | . . . . . . Piercing 12 | . . . . . 12 Sneak Attacks 1 | . . . . . 1 Combat Hostiles . | . . . . . . Follow-up Attacks . | . . . . . . Damage Inflicted 2855 | . 440 261 . . 2154 Guns 2548 | . 440 . . . 2108 Cannons . | . . . . . . Explosions 261 | . . 261 . . . Melee 44 | . . . . . 44 Ramming 2 | . . . . . 2 Kinetic 2548 | . 440 . . . 2108 Thermal . | . . . . . . Explosive 261 | . . 261 . . . Electromagnetic . | . . . . . . Impact . | . . . . . . Slashing . | . . . . . . Piercing 44 | . . . . . 44 Highest Corruption 2 | . . . . . 2 Average Corruption 2 | . . . . . 2 Corruption Purged . | . . . . . . Corruption Blocked . | . . . . . . Overload Shots . | . . . . . . Overflow Damage 4 | . . . . . 4 Projectiles . | . . . . . . Explosions . | . . . . . . Melee 4 | . . . . . 4 Knockbacks . | . . . . . . Impact . | . . . . . . Kinetic . | . . . . . . Secondary . | . . . . . . Self-Inflicted Damage 14 | . . 14 . . . Shots 1 | . . 1 . . . Rammed 1 | . . . . . 1 Targets Rammed 1 | . . . . . 1 Kicked . | . . . . . . Crushed . | . . . . . . Highest Temperature 326 | . 20 . . . 326 Average Temperature 88 | . 8 . . . 91 Received Heat Transfer 519 | . 87 . . . 432 Effects 2 | . . . . . 2 Energy Bleed 2 | . . . . . 2 Siege Activations . | . . . . . . Robots Corrupted . | . . . . . . Combat Hostiles . | . . . . . . Parts Fried . | . . . . . . Impact Corruptions . | . . . . . . Robots Melted . | . . . . . . Combat Hostiles . | . . . . . . Parts Melted . | . . . . . . Heat Transferred . | . . . . . . Parts Sabotaged . | . . . . . . Parts Stolen . | . . . . . . Parts Stripped . | . . . . . . Power Chain Reactions . | . . . . . . Alert | -11 -10 -10 -10 -9 -8 ------- Run | Yrd Mat Min Exi Min Mat Peak Influence 310 | . 222 96 . . 310 Initial 1 | . . 1 . . . Average 96 | . 93 36 . . 149 Maximum Alert Level 1 | . 1 . . . 1 Low Security (%) 80 | 100 82 100 . 100 67 Level 1 19 | . 17 . . . 32 Level 2 . | . . . . . . Level 3 . | . . . . . . Level 4 . | . . . . . . Level 5 . | . . . . . . High Security . | . . . . . . Max Security . | . . . . . . Squads Dispatched 4 | . . . . . 4 Investigation . | . . . . . . Extermination . | . . . . . . Reinforcement 1 | . . . . . 1 Assault . | . . . . . . Garrison 3 | . . . . . 3 Intercept . | . . . . . . Searches Triggered . | . . . . . . Construction Impeded . | . . . . . . Haulers Reinforced . | . . . . . . Active Scanning Responses . | . . . . . . Cargo Convoy Interrupts . | . . . . . . Stealth | -11 -10 -10 -10 -9 -8 --------- Run | Yrd Mat Min Exi Min Mat Distress Signals 5 | . 1 . . . 4 Communications Jammed . | . . . . . . Distress Signals . | . . . . . . Times Spotted 65 | . 16 11 . . 38 Peak Tracking Total 8 | . 6 8 . . 5 Tactical Retreats 3 | . 2 . . . 1 Traps | -11 -10 -10 -10 -9 -8 ------- Run | Yrd Mat Min Exi Min Mat Traps Triggered 1 | . . . . . 1 Indirectly . | . . . . . . Trap Hack Attempts . | . . . . . . Triggered . | . . . . . . Disarmed . | . . . . . . Reprogrammed . | . . . . . . Reused . | . . . . . . Traps Extracted . | . . . . . . Installed . | . . . . . . Triggered . | . . . . . . Machines | -11 -10 -10 -10 -9 -8 ---------- Run | Yrd Mat Min Exi Min Mat Machines Disabled . | . . . . . . Max in Single Turn . | . . . . . . Machines Repaired . | . . . . . . Machines Dismantled . | . . . . . . Machines Sabotaged . | . . . . . . Overloaded Fab Kills . | . . . . . . Hacking | -11 -10 -10 -10 -9 -8 --------- Run | Yrd Mat Min Exi Min Mat Machines Accessed 14 | . 5 . 1 . 8 Terminals 12 | . 5 . . . 7 Fabricators . | . . . . . . Repair Stations . | . . . . . . Recycling Units . | . . . . . . Scanalyzers 1 | . . . . . 1 Garrison Access . | . . . . . . Total Hacks 38 | . 15 . 3 . 20 Successful 16 | . 5 . 3 . 8 Failed 22 | . 10 . . . 12 Catastrophic 4 | . 3 . . . 1 Database Lockouts . | . . . . . . Manual 17 | . 11 . 1 . 5 Terminals 32 | . 15 . . . 17 Fabricators . | . . . . . . Repair Stations . | . . . . . . Recycling Units . | . . . . . . Scanalyzers 3 | . . . . . 3 Garrison Access . | . . . . . . Terminal Hacks 11 | . 4 . 3 . 4 Record 3 | . . . 3 . . Part Schematic 2 | . 2 . . . . Robot Analysis 1 | . 1 . . . . Unreport Threat 2 | . 1 . . . 1 Zone Layout 3 | . . . . . 3 Fabricator Hacks . | . . . . . . Repair Station Hacks . | . . . . . . Recycling Unit Hacks . | . . . . . . Scanalyzer 2 | . . . . . 2 Insert Component 1 | . . . . . 1 Analyze 1 | . . . . . 1 Garrison Access Hacks . | . . . . . . Unauthorized Hacks 3 | . 1 . . . 2 Terminals 3 | . 1 . . . 2 Botnet 3 | . 1 . . . 2 Fabricators . | . . . . . . Repair Stations . | . . . . . . Recycling Units . | . . . . . . Scanalyzers . | . . . . . . Garrison Access . | . . . . . . Data Cores Recovered . | . . . . . . Used . | . . . . . . Hacking Detections 11 | . 5 . . . 6 Full Trace Events 1 | . . . . . 1 Feedback Events . | . . . . . . Feedback Blocked . | . . . . . . Robot Schematics Acquired . | . . . . . . Robots Built . | . . . . . . Authchips . | . . . . . . Time . | . . . . . . Total Robot Build Rating . | . . . . . . Part Schematics Acquired 3 | . 2 . . . 1 Parts Built . | . . . . . . Authchips . | . . . . . . Time . | . . . . . . Total Part Build Rating . | . . . . . . Parts Repaired . | . . . . . . Time . | . . . . . . Parts Recycled . | . . . . . . Recycled Matter . | . . . . . . Retrieved Matter . | . . . . . . Retrieved Components . | . . . . . . Parts Scanalyzed 1 | . . . . . 1 Part Schematics Acquired 1 | . . . . . 1 Parts Damaged . | . . . . . . Bothacking | -11 -10 -10 -10 -9 -8 ------------ Run | Yrd Mat Min Exi Min Mat Used RIF Installer . | . . . . . . Robots Hacked . | . . . . . . Non-combat . | . . . . . . Combat . | . . . . . . Robot Hacks Applied . | . . . . . . Relay Couplers Released . | . . . . . . Fabnet Peak Effective % . | . . . . . . Robots Rewired . | . . . . . . Allies Hacked . | . . . . . . Hacks Repelled . | . . . . . . Allies | -11 -10 -10 -10 -9 -8 -------- Run | Yrd Mat Min Exi Min Mat Total Allies . | . . . . . . Largest Group . | . . . . . . Highest-Rated Group . | . . . . . . Highest-Rated Ally . | . . . . . . Total Orders . | . . . . . . Ally Attacks . | . . . . . . Total Damage . | . . . . . . Kills . | . . . . . . Allies Corrupted . | . . . . . . Allies Melted . | . . . . . . Intel | -11 -10 -10 -10 -9 -8 ------- Run | Yrd Mat Min Exi Min Mat Robot Analysis Total 1 | . 1 . . . . Derelict Logs Recovered 3 | . . 2 . 1 . Drone Launches . | . . . . . . Drone Recoveries . | . . . . . . Exploration | -11 -10 -10 -10 -9 -8 ------------- Run | Yrd Mat Min Exi Min Mat Turns Passed 5881 | 77 996 803 1224 595 2186 Spaces Moved 2299 | 43 438 321 508 237 752 Core 1 | 1 . . . . . Treads 2298 | 42 438 321 508 237 752 Legs . | . . . . . . Wheels . | . . . . . . Hover . | . . . . . . Flight . | . . . . . . Fastest Speed 50 | 50 160 240 240 240 160 Average Speed 222 | 157 194 240 240 240 218 Slowest Speed 240 | 160 240 240 240 240 240 Overloaded Moves . | . . . . . . Propulsion Burnouts . | . . . . . . Robots Hopped . | . . . . . . Cave-ins Triggered . | . . . . . . Exploration Rate (%) 57 | 3 73 52 91 51 72 Regions Visited 5 Branch Regions 3 Pre-discovered Areas 4 | . . 1 1 2 . Known Exits Taken . | . . . . . . Unknown Exits Taken 5 | 1 1 1 1 1 . Scrap Searched . | . . . . . . Spaces Dug 18 | . . 7 . . 11 Terrain Destroyed 31 | . . 20 . . 11 Melee 11 | . . . . . 11 Projectile . | . . . . . . AOE 20 | . . 20 . . . Terrain Rammed . | . . . . . . Walls Destroyed . | . . . . . . Machines Disabled . | . . . . . . Actions | -11 -10 -10 -10 -9 -8 --------- Run | Yrd Mat Min Exi Min Mat Total 2818 | 49 529 350 513 265 1112 Wait 277 | . 46 18 . 27 186 Move 2294 | 42 437 320 507 236 752 Hop . | . . . . . . Pick Up 41 | 1 11 6 4 1 18 Fast Attach 9 | 6 1 . . . 2 Attach 7 | . 1 . . . 6 Detach . | . . . . . . Swap 22 | . 2 3 2 . 15 Drop 19 | . 3 . . 1 15 Fire 133 | . 28 3 . . 102 Melee 15 | . . . . . 15 Ram . | . . . . . . Kick . | . . . . . . Crush 1 | . . . . . 1 Escape Stasis . | . . . . . . Rewire . | . . . . . . Trap . | . . . . . . Miscellaneous . | . . . . . . Route ------- -11/Scrapyard -10/Materials (discovered 2 exits: [*Mat] / [*Min]) -10/Mines (discovered 3 exits: [*Mat x2] / *Exi) -10/Exiles (discovered 2 exits: [*Min x2]) -9/Mines -8/Materials (discovered 1 exit: *Fac) History --------- Turn | Location | Event 16 | -11/Scrapyard | Discovered new exit (range 15) 78 | -11/Scrapyard | Entered Materials 237 | -10/Materials | Discovered new exit (range 14) 307 | -10/Materials | Build established: Mutant 691 | -10/Materials | Discovered new exit (range 14) 1074 | -10/Materials | Entered Mines 1256 | -10/Mines | Assembled infested the area 1427 | -10/Mines | Received a Rocket Launcher from a helpful Derelict 1434 | -10/Mines | Discovered new exit (range 5) 1784 | -10/Mines | Learned Materials garrison access intel 1817 | -10/Mines | Discovered new exit (range 8) 1822 | -10/Mines | Learned location of Recycling (-9) 1867 | -10/Mines | Discovered new exit (range 5) 1877 | -10/Mines | Entered Exiles 1909 | -10/Exiles | Discovered new exit (range 15) 1935 | -10/Exiles | Met 8R-AWN 1976 | -10/Exiles | Met EX-HEX 2096 | -10/Exiles | Met EX-DEC 2145 | -10/Exiles | Visited The Gauntlet 2432 | -10/Exiles | Learned location of Zion (-7) 2518 | -10/Exiles | Discovered new exit (range 14) 2667 | -10/Exiles | Met EX-BIN 2789 | -10/Exiles | Aligned with FarCom system 2792 | -10/Exiles | Given EX-Vault access code 2847 | -10/Exiles | Opened EX-Vault 2859 | -10/Exiles | Found Prototype Device 2870 | -10/Exiles | Found Deploy-a-Sentry 2873 | -10/Exiles | Found Deploy-a-Sentry 2876 | -10/Exiles | Found Deploy-a-Sentry 2877 | -10/Exiles | Identified Skeleton Box 2924 | -10/Exiles | Warned to stay clear of 0b10 Research branches 3101 | -10/Exiles | Stole two prototypes: Skeleton Box, Deploy-a-Sentry 3101 | -10/Exiles | Entered Mines 3111 | -9/Mines | Met a Derelict bent on vengeance 3372 | -9/Mines | A weapon hastily lodged in a ceiling crevice suddenly fell to the ground 3549 | -9/Mines | Learned location of Storage (-9) 3670 | -9/Mines | Discovered new exit (range 12) 3696 | -9/Mines | Entered Materials 3696 | -8/Materials | Evolved 4 slots: Propulsion x2, Utility x2 3697 | -8/Materials | Loaded intel: 1 garrison access location 3820 | -8/Materials | Destroyed 7 combat bots 4123 | -8/Materials | Discovered new exit (range 16) 4454 | -8/Materials | Identified exit to Factory 5251 | -8/Materials | Build established: Scavenger-Mutant 5566 | -8/Materials | Garrison activated, responded to threat 5882 | -8/Materials | Self-destructed Last Messages --------------- 05587_ K-01 Serf collects debris. 05590_ W-25 Informer destroyed. 05592_ K-01 Serf collects debris. 05598_ K-01 Serf cleans the Fusion Modulator. 05634_ S-10 Pest destroyed. 05644_ Acquired 27 matter. 05646_ Acquired 44 matter. 05648_ Acquired 25 matter. 05658_ Acquired 29 matter. 05663_ Acquired 15 matter. 05664_ R-06 Scavenger collects Flight Unit. 05667_ R-06 Scavenger collects Lgt. Assault Rifle. 05671_ R-06 Scavenger collects Lgt. Ion Engine. 05674_ R-06 Scavenger collects Flight Unit. 05776_ Connecting with Terminal... 05856_ Triggered Shock Trap. 05856_ The floor emits a surge of raw power. 05856_ System corrupted (+2). 05873_ Y-45 Defender destroyed. 05876_ U-05 Engineer lays Concrete. Map ----- +----------------------------------------------------+ | | | | | | | | | | | | | | | | | | | | | | | ???????????????????????????????? | | ??????????????#######??????????? | | ??????????????#"""""#??????????? | | ?????????????##""T""###????????? | | ?????????????# #????????? | | ?????????????# """ #????????? | | ?????????????# """ #????????? | | ?????????????# """ #????????? | | ?????????????# #????????? | | ????????????# """ ########## | | ???????????# """ ## ! # | | ! #??????????# """ ##"" /# | | #????####### ##"Y # | | " #????# ##+####+###"" # | | " ###### # @ # | | " ?# %+* """ # | | ???# ### [# """ # | | #### #?# ##+######## """ # | | #####+### T ##[ # | | ####### ! # ! ## !# | | ??????# # ## ! # | | ??????# ! # "###### ## | | ????#?# # T#?????##? | | #####?# ! # """ "#???????? | | #?# # """ ##???????? | | #?######## """ #????????? | | #?????#??# / #????????? | | #????????##########????????? | | #??#???????????????????????? | | ########????????????????????? | | # #????????????????????? | | # #??#?????????????????? | | + #?#?#????????????????? | | [* # #????????????????????? | | [ # #????????????????????? | | [ # ##?#??#??????????????? | | #########???????????????????? | | #########????#??????????????? | | # #??????#????????????? | +----------------------------------------------------+ Best States ------------- Heat Dissipation 31 Energy Generation 14 Energy Capacity 275 Matter Stores 300 Matter Capacity 300 Sight Range 16 Terrain Scan Range 14 Terrain Scan Density 10 Armor Coverage 600 Evasion (%) 40 Recoil Reduction 4 Item Schematics ----------------- Huge Storage Unit | -10/Materials | Hacked Cargo Storage Unit | -10/Materials | Hacked Cmb. Airjet | -8/Materials | Scanalyzed Robot Schematics ------------------ None Fabricated ------------ Nothing Alien Tech Used ----------------- None Achievements -------------- None Challenges ------------ None Game ------ Seed ConstructWeldingDeflector Manual? 0 Play Time 00:29:53 Cumulative 136.1 hours Start 2025.03.01 @ 14:14:26 End 2025.03.04 @ 00:31:10 Sessions 5 Manual Loads 0 Difficulty Rogue Special Mode None Game No. 188 Rogue 188 Adventurer 0 Explorer 0 Win Type - Total 1 Types 1/0/0/0/0/0/0/0/0 Lore% 48 Gallery% 53 Achievement% 51 Wizard Run 0 Options --------- Layout 1 ASCII 0 Keyboard 0 Movement Numpad Keybinds 0 Fullscreen 1 Font 32/SmallcapsGlow Map View 77x35 Zoom Use 0% Tactical HUD 1 Map Filters NONE Filters NONE Steam 1 RUN: 569727b1-5ea0-4e5f-af67-a0b3df3340c2